bitfinex/quotes_ETHUSD_20250730
["timestamp","ask_amount","ask_price","bid_price","bid_amount"]
[1753839493250,0.002,3797.9,3797.8,18.37449129]
[1753839497428,0.002,3797.9,3797.8,5.0486]
[1753839497604,0.4438,3797.9,3797.8,9.1276]
[1753839497960,0.002,3797.9,3797.8,9.1276]
[1753839498303,0.002,3797.9,3797.8,9.5839]
[1753839498599,0.002,3797.9,3797.8,15.21700337]
[1753839505785,0.002,3797.9,3797.8,15.21800337]
[1753839507303,0.002,3797.9,3797.8,12.1286]
[1753839507623,0.4438,3797.9,3797.8,13.99310337]
[1753839507819,0.002,3797.9,3797.8,14.44940337]
[1753839508601,0.002,3797.9,3797.8,14.44440337]
[1753839509290,0.002,3797.9,3797.8,14.74250337]
[1753839509491,0.002,3797.9,3797.8,14.44440337]
[1753839513131,0.002,3797.9,3797.8,15.24970337]
[1753839513539,0.45,3798.7,3798.1,0.8053]
[1753839513701,0.04,3798.9,3798.5,3.0]
[1753839513896,0.04,3798.9,3798.8,5.78089815]
[1753839514135,0.4868,3798.9,3798.8,9.98689815]
[1753839514334,0.4868,3798.9,3798.8,7.35448792]
[1753839514706,0.04,3798.9,3798.8,7.35448792]
[1753839514904,0.04,3798.9,3798.8,7.81288792]
[1753839515216,0.4868,3798.9,3798.8,7.35448792]
[1753839515400,0.04,3798.9,3798.8,13.78739815]
[1753839515598,0.04,3798.9,3798.8,14.24579815]
[1753839515801,0.04,3798.9,3798.8,18.52579815]
[1753839516926,0.004,3799.6,3799.4,2.63198922]
[1753839517130,0.04,3799.9,3799.8,0.55]
[1753839517426,0.004,3800.2,3800.1,9.54039761]
[1753839517741,0.4548,3800.8,3800.1,9.54039761]
[1753839517742,0.008,3800.8,3800.7,5.63109427]
[1753839517904,0.008,3800.8,3800.7,14.23048219]
[1753839518102,0.008,3800.8,3800.7,14.36168219]
[1753839518340,0.008,3800.8,3800.7,14.82008219]
[1753839518711,0.008,3800.8,3800.7,7.10558792]
[1753839519015,0.008,3800.8,3800.3,3.14848792]
[1753839519016,0.9048,3800.8,3800.3,3.14848792]
[1753839519214,0.4468,3800.7,3800.6,3.14848792]
[1753839519450,0.4468,3800.7,3800.6,7.23948792]
[1753839519603,0.8968,3800.7,3800.2,3.14848792]
[1753839519809,0.8968,3800.6,3800.3,4.092]
[1753839520030,0.8968,3800.5,3800.1,4.091]
[1753839520248,0.7601,3800.3,3799.0,0.7635]
[1753839520418,0.7601,3800.1,3798.9,4.094]
[1753839520633,0.7601,3799.9,3798.9,4.094]
[1753839520809,1.6879,3799.8,3798.3,9.47548792]
[1753839521009,6.14848792,3800.6,3798.4,4.095]
[1753839521010,0.7911,3799.6,3798.4,4.095]
[1753839521304,3.0,3800.6,3798.4,4.095]
[1753839521305,0.7911,3799.4,3798.6,3.14848792]
[1753839521508,0.4468,3799.3,3798.6,0.80442548]
[1753839521811,0.4468,3799.3,3799.2,3.14848792]
[1753839522005,0.4468,3799.7,3799.2,7.24448792]
[1753839522223,0.4468,3800.1,3799.6,3.14848792]
[1753839522444,0.4468,3800.1,3800.0,3.14848792]
[1753839522645,0.4468,3800.4,3800.0,3.14848792]
[1753839522861,0.008,3800.8,3800.3,4.77785033]
[1753839523046,0.008,3800.8,3800.4,4.101]
[1753839523206,0.4548,3800.8,3800.4,4.101]
[1753839523819,0.4468,3800.7,3800.4,4.101]
[1753839524149,0.8968,3800.6,3800.4,4.102]
[1753839524445,1.7242,3800.5,3800.1,4.102]
[1753839524650,0.8274,3800.5,3800.1,4.103]
[1753839524838,0.8968,3800.4,3800.1,4.103]
[1753839525039,0.4468,3800.3,3800.1,4.103]
[1753839525352,0.8274,3800.5,3800.1,4.103]
[1753839525508,0.4468,3800.2,3800.1,4.103]
[1753839526415,0.8968,3800.2,3799.1,0.7681]
[1753839526616,0.008,3800.8,3798.8,0.4584]
[1753839526617,0.8004,3800.0,3799.2,4.101]
[1753839526819,0.8968,3799.9,3799.2,4.101]
[1753839527147,0.4468,3799.8,3799.2,4.101]
[1753839527529,0.45,3799.7,3799.2,4.101]
[1753839527733,0.45,3799.6,3799.2,4.101]
[1753839527939,0.8968,3799.5,3799.2,4.101]
[1753839528255,0.4468,3799.4,3799.2,4.101]
[1753839528825,0.4468,3799.4,3798.8,3.0]
[1753839529024,0.4468,3799.4,3799.3,0.132]
[1753839530076,0.8968,3799.4,3799.3,0.132]
[1753839530835,1.7049,3799.4,3799.3,0.132]
[1753839531276,1.87539,3799.4,3799.3,0.132]
[1753839531449,1.87539,3799.4,3799.2,0.132]
[1753839531661,0.8968,3799.3,3799.2,0.132]
[1753839532534,0.8968,3799.3,3799.1,0.132]
[1753839532734,0.8968,3799.2,3799.1,0.132]
[1753839537433,0.8081,3799.4,3799.1,0.132]
[1753839537936,0.8081,3799.4,3799.3,0.132]
[1753839538145,1.2549,3799.4,3799.3,0.132]
[1753839538490,0.8081,3799.4,3799.3,0.132]
[1753839538833,0.4468,3799.7,3799.3,0.132]
[1753839539071,0.7978,3799.8,3799.4,0.4584]
[1753839539233,1.2446,3799.8,3799.4,0.4584]
[1753839539433,1.2446,3799.8,3799.6,0.1312]
[1753839539851,0.7978,3799.8,3799.6,0.1312]
[1753839541939,0.002,3799.8,3799.7,0.4849]
[1753839542254,0.002,3799.8,3799.6,0.1312]
[1753839542452,0.9212,3799.7,3799.6,0.1312]
[1753839542633,1.7073,3799.7,3799.1,4.28]
[1753839542835,0.9212,3799.6,3799.5,0.1312]
[1753839543235,0.95402545,3799.6,3799.5,0.1312]
[1753839543440,0.9212,3799.6,3799.5,0.1312]
[1753839545539,0.4471,3799.6,3799.5,0.1312]
[1753839546385,0.002,3799.8,3799.5,0.1312]
[1753839546587,0.4471,3799.6,3799.5,0.1312]
[1753839546786,0.9212,3799.6,3799.5,0.1312]
[1753839547177,0.4471,3799.6,3799.5,0.1312]
[1753839547987,0.9212,3799.6,3799.5,0.1312]
[1753839548199,1.7337,3799.6,3799.5,0.1312]
[1753839548406,1.91055255,3799.6,3799.5,0.1312]
[1753839549602,1.91055255,3799.6,3799.4,0.1312]
[1753839549809,0.9212,3799.5,3799.4,0.1312]
[1753839552506,0.9212,3799.5,3799.2,0.132]
[1753839552711,0.9212,3799.4,3799.2,0.132]
[1753839553058,0.002,3799.8,3799.2,0.4849]
[1753839554362,0.002,3799.8,3799.2,4.79122133]
[1753839554568,0.002,3799.8,3799.2,4.7649]
[1753839554903,0.7927,3799.8,3799.2,4.7649]
[1753839555510,0.47992545,3799.7,3799.2,4.28]
[1753839555675,1.29762545,3799.6,3799.1,0.001]
[1753839555874,0.7907,3799.5,3799.1,0.001]
[1753839556092,0.03282545,3799.4,3799.1,0.001]
[1753839556306,0.17447255,3799.3,3799.1,0.001]
[1753839556511,0.4741,3799.3,3799.1,0.001]
[1753839556817,0.9212,3799.2,3799.1,0.001]
[1753839557656,0.7907,3799.5,3799.1,0.001]
[1753839557983,0.4471,3799.4,3799.1,0.001]
[1753839558183,0.7907,3799.5,3799.1,0.001]
[1753839558632,0.4471,3799.4,3799.1,0.001]
[1753839558810,0.7907,3799.5,3799.2,0.4849]
[1753839558988,5.50049,3799.8,3799.3,0.4849]
[1753839559186,1.2401,3799.8,3799.4,0.4849]
[1753839560285,0.002,3799.8,3799.5,0.4849]
[1753839560486,0.002,3799.8,3799.1,0.001]
[1753839560785,0.002,3799.8,3799.2,0.4849]
[1753839563118,0.002,3799.8,3799.6,0.1312]
[1753839563521,0.4491,3799.8,3799.6,0.1312]
[1753839564735,0.4471,3799.7,3799.6,0.1312]
[1753839564944,0.9212,3799.7,3799.6,0.1312]
[1753839565688,0.4471,3799.7,3799.6,0.1312]
[1753839567240,0.9212,3799.7,3799.6,0.1312]
[1753839567408,0.814,3799.6,3799.1,0.001]
[1753839567734,0.187828,3799.5,3799.1,0.001]
[1753839568035,0.1312,3799.4,3799.1,0.001]
[1753839568330,0.6053,3799.4,3799.1,0.001]
[1753839569133,1.51584,3799.3,3799.1,0.001]
[1753839569332,1.7352,3799.2,3799.1,0.001]
[1753839569628,1.76802545,3799.2,3799.1,0.001]
[1753839569788,1.87492545,3799.2,3799.1,0.001]
[1753839569993,34.87492545,3799.2,3799.1,0.001]
[1753839570205,7.41236461,3799.2,3799.1,0.001]
[1753839570407,5.9271,3799.2,3799.1,0.001]
[1753839571840,38.9271,3799.2,3799.1,0.001]
[1753839572196,44.88923308,3799.2,3799.1,0.001]
[1753839573296,40.80423308,3799.2,3799.1,0.001]
[1753839573497,44.88923308,3799.2,3799.1,0.001]
[1753839573841,47.45949769,3799.2,3799.1,0.001]
[1753839574735,44.67949769,3799.2,3799.1,0.001]
[1753839575335,14.67949769,3799.2,3799.1,0.001]
[1753839575513,44.81294006,3799.2,3799.1,0.001]
[1753839576645,40.72794006,3799.2,3799.1,0.001]
[1753839576939,3.18234094,3798.9,3798.8,0.001]
[1753839577100,41.59840742,3798.9,3798.8,0.001]
[1753839577299,42.03148197,3798.9,3798.8,0.001]
[1753839577499,42.51238197,3798.9,3798.8,0.001]
[1753839578395,12.51238197,3798.9,3798.8,0.001]
[1753839578599,49.16564658,3798.9,3798.8,0.001]
[1753839578800,51.94564658,3798.9,3798.8,0.001]
[1753839579050,51.94564658,3798.9,3798.1,0.04]
[1753839579051,5.96282607,3798.2,3798.1,0.04]
[1753839579208,11.09102607,3798.2,3798.1,0.04]
[1753839579422,9.537,3798.2,3798.1,0.04]
[1753839579607,44.74009068,3798.2,3798.1,0.04]
[1753839580253,42.10726461,3798.2,3798.1,0.04]
[1753839580465,38.02126461,3798.2,3798.1,0.04]
[1753839582161,44.74009068,3798.2,3798.1,0.04]
[1753839583025,3.18303404,3797.9,3797.8,0.001]
[1753839583228,46.5780241,3797.9,3797.8,0.001]
[1753839583428,47.49199865,3797.9,3797.8,0.001]
[1753839584166,44.71199865,3797.9,3797.8,0.001]
[1753839584527,47.49199865,3797.9,3797.8,0.001]
[1753839585344,47.49299865,3797.9,3797.8,0.001]
[1753839585668,147.49299865,3797.9,3797.8,0.001]
[1753839586160,149.07599865,3797.9,3797.8,0.001]
[1753839586364,144.99099865,3797.9,3797.8,0.001]
[1753839586525,19.07399865,3797.9,3797.8,0.001]
[1753839586869,49.07399865,3797.9,3797.8,0.001]
[1753839587660,47.49099865,3797.9,3797.8,0.001]
[1753839588447,43.40799865,3797.9,3797.8,0.001]
[1753839588651,47.48999865,3797.9,3797.8,0.001]
[1753839589439,43.40799865,3797.9,3797.8,0.001]
[1753839589661,47.48999865,3797.9,3797.8,0.001]
[1753839590678,39.77611138,3797.5,3797.4,0.001]
[1753839590863,27.66722632,3797.5,3797.4,0.001]
[1753839591064,28.61402632,3797.5,3797.4,0.001]
[1753839591266,58.61402632,3797.5,3797.4,0.001]
[1753839591513,58.61402632,3797.5,3797.1,0.04]
[1753839591514,36.79421943,3797.2,3797.1,0.04]
[1753839591789,44.00621943,3797.2,3797.1,0.04]
[1753839591955,47.52328404,3797.2,3797.1,0.04]
[1753839592154,47.04238404,3797.2,3797.1,0.04]
[1753839592478,36.53296461,3797.2,3797.1,0.04]
[1753839592661,10.61296461,3797.2,3797.1,0.5258]
[1753839592866,41.16296461,3797.2,3797.1,0.5258]
[1753839593442,36.53296461,3797.2,3797.1,0.5258]
[1753839593770,40.61296461,3797.2,3797.1,0.5258]
[1753839593956,36.53296461,3797.2,3797.1,0.5258]
[1753839594136,40.61496461,3797.2,3797.1,0.5258]
[1753839595384,40.61496461,3797.2,3797.1,0.04]
[1753839595552,41.08086461,3797.2,3797.1,0.04]
[1753839596546,41.63086461,3797.2,3797.1,0.04]
[1753839596751,47.52528404,3797.2,3797.1,0.04]
[1753839597046,47.72519166,3797.2,3797.1,0.04]
[1753839598787,43.64319166,3797.2,3797.1,0.04]
[1753839598962,44.60877223,3797.2,3797.1,0.04]
[1753839599171,42.69639166,3797.2,3797.1,0.04]
[1753839599491,0.55,3796.7,3796.4,0.001]
[1753839599690,36.33,3796.5,3796.4,0.001]
[1753839599896,36.462,3796.5,3796.4,0.001]
[1753839600559,42.12875033,3796.5,3796.4,0.001]
[1753839600871,40.542,3796.5,3796.4,0.001]
[1753839601266,33.132,3796.5,3796.4,0.001]
[1753839601472,4.212,3796.5,3796.4,0.2991]
[1753839602558,10.9632,3796.5,3796.4,0.001]
[1753839602827,41.7484,3796.5,3796.4,0.001]
[1753839603296,42.1842,3796.5,3796.4,0.001]
[1753839603497,4.212,3796.5,3796.4,0.001]
[1753839604195,4.34636183,3796.5,3796.4,0.001]
[1753839604398,4.34736183,3796.5,3796.4,0.001]
[1753839605057,0.26636183,3796.5,3796.4,0.001]
[1753839605459,4.34636183,3796.5,3796.4,0.001]
[1753839607925,0.26636183,3796.5,3796.4,0.001]
[1753839608126,4.34636183,3796.5,3796.4,0.2991]
[1753839608302,4.34636183,3796.5,3796.4,0.7876]
[1753839608688,7.34636183,3796.5,3796.4,0.7876]
[1753839609601,3.132,3796.5,3796.4,0.7876]
[1753839609801,4.08,3796.5,3796.4,1.5494]
[1753839610617,0.132,3796.6,3796.4,1.5494]
[1753839610810,4.08,3796.5,3796.4,0.7628]
[1753839611289,4.08,3796.5,3796.4,1.2513]
[1753839611602,4.08,3796.5,3796.4,1.5494]
[1753839612141,0.26633179,3796.6,3796.4,1.5494]
[1753839612317,4.08,3796.5,3796.4,0.7628]
[1753839612918,4.08,3796.5,3796.4,1.5494]
[1753839613452,3.0,3797.4,3796.4,1.5494]
[1753839613748,0.132,3796.9,3796.5,0.7866]
[1753839613951,4.08,3796.8,3796.6,0.7866]
[1753839614243,6.331,3797.5,3796.7,0.9186]
[1753839614244,0.132,3797.2,3796.7,0.9186]
[1753839614448,4.08,3797.1,3796.7,0.132]
[1753839614619,4.08,3797.0,3796.9,0.8279]
[1753839614946,4.08,3797.0,3796.9,1.7465]
[1753839615754,0.002,3797.1,3796.9,0.9186]
[1753839615906,0.002,3797.1,3797.0,1.5713]
[1753839616106,4.082,3797.1,3797.0,1.7033]
[1753839616735,4.082,3797.1,3797.0,1.4052]
[1753839616950,0.002,3797.1,3797.0,1.4052]
[1753839617454,0.002,3797.1,3797.0,1.7033]
[1753839624452,0.002,3797.1,3797.0,1.4052]
[1753839624656,0.002,3797.1,3797.0,0.9167]
[1753839625055,0.4378,3797.1,3796.6,0.8116]
[1753839625258,0.4378,3797.1,3796.9,0.132]
[1753839625259,0.002,3797.1,3796.9,0.132]
[1753839625446,0.4358,3797.0,3796.9,0.132]
[1753839625643,0.4358,3797.0,3796.6,1.3001]
[1753839625644,0.46862545,3797.0,3796.6,0.8116]
[1753839625866,0.48592545,3797.0,3796.7,0.132]
[1753839626146,0.4358,3796.9,3796.7,0.132]
[1753839626886,0.002,3797.1,3796.4,0.001]
[1753839626887,1.0209,3796.8,3796.4,0.001]
[1753839627058,0.5851,3796.8,3796.4,0.001]
[1753839627263,4.079,3796.7,3796.5,0.4885]
[1753839627446,4.079,3796.7,3796.6,0.132]
[1753839627642,0.002,3797.1,3796.6,1.4119]
[1753839627847,0.002,3797.1,3796.7,0.4885]
[1753839628186,0.4378,3797.1,3796.7,0.4885]
[1753839628372,0.4358,3797.0,3796.6,0.9234]
[1753839628547,0.4358,3796.9,3796.6,0.9234]
[1753839628870,0.4358,3796.9,3796.6,1.4119]
[1753839629181,0.4358,3796.8,3796.4,0.133]
[1753839629497,0.8889,3796.8,3796.4,0.001]
[1753839629689,0.132,3796.7,3796.4,0.001]
[1753839629848,0.5851,3796.7,3796.4,0.001]
[1753839630180,0.4358,3796.6,3796.4,0.001]
[1753839630686,0.431,3796.5,3796.4,0.001]
[1753839631683,0.132,3796.7,3796.4,0.471]
[1753839631884,0.132,3796.7,3796.5,0.47]
[1753839631885,4.079,3796.7,3796.5,0.47]
[1753839632070,4.079,3796.9,3796.6,0.47]
[1753839632276,4.079,3796.9,3796.6,0.602]
[1753839632673,4.51,3796.9,3796.6,0.602]
[1753839633269,4.51,3796.9,3796.6,0.132]
[1753839634147,0.002,3797.1,3796.6,0.132]
[1753839634464,0.002,3797.1,3796.8,0.8229]
[1753839634670,0.002,3797.1,3797.0,0.132]
[1753839636477,0.002,3797.1,3797.0,0.602]
[1753839636700,4.081,3797.1,3797.0,0.602]
[1753839639643,4.512,3797.1,3796.8,0.8229]
[1753839639952,0.431,3797.0,3796.8,0.132]
[1753839640466,0.46382545,3796.9,3796.8,0.132]
[1753839640658,0.91402545,3796.9,3796.8,0.132]
[1753839641010,0.46382545,3796.9,3796.8,0.132]
[1753839641465,0.46382545,3796.9,3796.4,0.001]
[1753839641682,0.46382545,3796.9,3796.5,0.132]
[1753839641942,0.8812,3796.8,3796.5,0.132]
[1753839642242,0.46382545,3796.7,3796.4,0.001]
[1753839642447,4.079,3796.6,3796.4,0.001]
[1753839642746,0.03282545,3796.5,3796.4,0.001]
[1753839643143,0.46382545,3796.5,3796.4,0.001]
[1753839643311,0.431,3796.5,3796.4,0.001]
[1753839643943,4.079,3796.6,3796.4,0.001]
[1753839644659,4.51,3796.6,3796.4,0.001]
[1753839644831,0.431,3796.5,3796.4,0.001]
[1753839646424,4.64172709,3796.6,3796.4,0.001]
[1753839646768,4.079,3796.6,3796.4,0.001]
[1753839647070,4.51,3796.6,3796.4,0.001]
[1753839647372,4.079,3796.6,3796.4,0.001]
[1753839647564,0.431,3796.5,3796.4,0.001]
[1753839647751,0.132,3796.8,3796.4,0.001]
[1753839647965,4.079,3796.7,3796.4,0.001]
[1753839648356,4.51,3796.7,3796.4,0.001]
[1753839648756,0.431,3797.3,3796.6,0.8325]
[1753839649068,4.079,3797.0,3796.7,0.47]
[1753839649764,4.079,3796.9,3796.8,0.47]
[1753839650486,0.134,3797.1,3796.6,0.9645]
[1753839650634,4.079,3796.9,3796.7,0.47]
[1753839650982,4.079,3796.9,3796.8,0.602]
[1753839652362,4.078,3796.9,3796.8,0.602]
[1753839653175,0.002,3797.1,3796.8,0.602]
[1753839653384,4.078,3796.9,3796.8,0.602]
[1753839653567,4.078,3796.9,3796.8,0.132]
[1753839654049,4.078,3796.9,3796.8,0.602]
[1753839655050,0.002,3797.1,3796.8,0.47]
[1753839655226,4.078,3797.0,3796.9,0.47]
[1753839657344,0.002,3797.1,3796.9,0.47]
[1753839657345,0.002,3797.1,3797.0,0.8037]
[1753839657544,0.002,3797.1,3797.0,1.12813658]
[1753839657745,0.002,3797.1,3797.0,8.8518]
[1753839660983,0.002,3797.1,3796.8,4.28]
[1753839661151,0.002,3797.1,3797.0,0.4743]
[1753839661347,0.002,3797.1,3797.0,1.2751]
[1753839663052,0.4432,3797.1,3796.8,4.28]
[1753839663403,0.4412,3797.0,3796.8,0.8302]
[1753839663893,0.002,3797.1,3796.6,0.8302]
[1753839664054,0.4412,3796.9,3796.6,0.8302]
[1753839664392,0.4412,3796.8,3796.6,0.8302]
[1753839665170,0.4412,3796.8,3796.7,0.132]
[1753839666084,0.002,3797.1,3796.7,0.6063]
[1753839666285,0.9335,3797.0,3796.6,0.8302]
[1753839666485,0.4412,3797.0,3796.9,0.132]
[1753839666690,0.002,3797.1,3796.9,0.132]
[1753839666990,0.4943,3797.1,3796.9,0.132]
[1753839667204,0.4412,3797.0,3796.9,0.132]
[1753839669299,0.9335,3797.0,3796.9,0.132]
[1753839669605,0.4412,3797.0,3796.9,0.132]
[1753839670426,0.002,3797.1,3796.9,0.6063]
[1753839670559,0.002,3797.1,3797.0,0.789]
[1753839670759,0.002,3797.1,3797.0,4.41288248]
[1753839670990,0.002,3797.1,3797.0,4.71098248]
[1753839671364,0.002,3797.1,3797.0,4.41288248]
[1753839672771,0.002,3797.1,3797.0,1.2633]
[1753839679305,0.002,3797.1,3797.0,1.28963658]
[1753839679513,0.002,3797.1,3797.0,5.5433]
[1753839680618,0.002,3797.1,3797.0,5.069]
[1753839681479,0.4432,3797.1,3797.0,4.281]
[1753839682198,0.002,3797.1,3797.0,4.7553]
[1753839683028,0.002,3797.1,3797.0,0.4753]
[1753839684720,0.002,3797.1,3797.0,0.001]
[1753839685038,0.4432,3797.1,3797.0,0.001]
[1753839689637,0.9355,3797.1,3797.0,0.001]
[1753839690015,1.691,3797.1,3797.0,0.001]
[1753839690235,1.1046,3797.1,3797.0,0.001]
[1753839691307,0.9355,3797.1,3797.0,0.001]
[1753839692432,0.002,3797.1,3797.0,0.001]
[1753839694092,0.002,3797.1,3797.0,0.4521]
[1753839694299,0.002,3797.1,3797.0,1.2216]
[1753839694529,0.4527,3797.1,3797.0,0.001]
[1753839694735,0.002,3797.1,3797.0,0.4521]
[1753839697084,0.002,3797.1,3797.0,1.2492]
[1753839697379,0.002,3797.1,3797.0,5.0973]
[1753839697528,0.002,3797.1,3797.0,7.73095815]
[1753839697888,0.002,3797.1,3797.0,5.0973]
[1753839698174,0.002,3797.1,3797.0,7.73095815]
[1753839699560,0.002,3797.1,3797.0,4.2492]
[1753839700045,0.002,3797.1,3797.0,4.27553658]
[1753839700251,0.002,3797.1,3797.0,7.20729473]
[1753839700419,0.002,3797.1,3797.0,7.18095815]
[1753839700619,0.002,3797.1,3797.0,11.46095815]
[1753839700855,0.002,3797.1,3797.0,12.01095815]
[1753839701631,0.002,3797.1,3797.0,16.08395815]
[1753839705867,0.002,3798.5,3797.4,0.55]
[1753839706034,0.002,3798.5,3798.4,3.28221262]
[1753839706631,0.002,3798.5,3798.4,3.73331262]
[1753839706988,0.002,3798.5,3798.4,7.80631262]
[1753839708974,0.002,3798.5,3798.4,10.80631262]
[1753839710198,0.002,3798.5,3798.4,10.35521262]
[1753839711589,0.002,3798.5,3798.4,13.43900006]
[1753839711744,0.002,3798.5,3798.4,14.77940006]
[1753839711944,0.002,3798.5,3798.4,15.07750006]
[1753839712746,0.042,3798.9,3798.8,3.18241023]
[1753839712994,0.042,3798.9,3798.8,14.20604695]
[1753839713286,0.002,3799.8,3799.1,0.55]
[1753839713579,0.002,3799.8,3799.7,3.15021262]
[1753839713788,0.002,3799.8,3799.7,3.28141262]
[1753839713985,0.002,3799.8,3799.7,3.30773048]
[1753839714165,0.002,3799.8,3799.7,3.75883048]
[1753839714785,0.002,3799.8,3799.7,3.30773048]
[1753839714986,0.002,3799.8,3799.7,3.75883048]
[1753839715826,0.002,3799.8,3799.7,9.3906172]
[1753839715941,0.002,3799.8,3799.7,9.91429934]
[1753839716148,0.002,3799.8,3799.7,10.21239934]
[1753839716371,0.002,3799.8,3799.7,10.96279934]
[1753839716890,0.008,3800.8,3800.4,2.63124149]
[1753839717137,0.008,3800.8,3800.7,0.1312]
[1753839717323,0.008,3800.8,3800.7,7.2012]
[1753839717650,0.008,3800.8,3800.7,7.6523]
[1753839718659,0.008,3800.8,3800.7,10.83339427]
[1753839718874,0.008,3800.8,3800.7,8.2023]
[1753839719752,0.008,3800.8,3800.7,3.6812]
[1753839719994,0.9505,3800.8,3800.7,4.2002]
[1753839720222,0.9505,3800.8,3800.7,7.2002]
[1753839720750,0.4587,3800.8,3800.7,7.2002]
[1753839720950,0.4587,3800.8,3800.7,0.1312]
[1753839721204,1.7464,3800.8,3800.7,0.1312]
[1753839721651,0.008,3800.8,3800.7,0.1312]
[1753839721851,0.008,3800.8,3800.7,3.15751094]
[1753839722083,0.008,3800.8,3800.7,3.5934]
[1753839723430,0.008,3800.8,3800.7,3.1312]
[1753839724119,0.4689,3800.8,3800.7,3.1312]
[1753839724303,0.4689,3800.8,3800.7,7.4112]
[1753839724509,0.4689,3800.8,3800.7,11.4792]
[1753839725224,0.008,3800.8,3800.7,11.4792]
[1753839725433,0.008,3800.8,3800.7,11.9414]
[1753839725723,0.008,3800.8,3800.7,17.2696459]
[1753839726082,0.008,3800.8,3800.7,19.90074017]
[1753839726288,0.008,3800.8,3800.7,20.67784017]
[1753839727754,0.008,3800.8,3800.7,21.36589628]
[1753839727937,0.008,3800.8,3800.7,21.01441905]
[1753839728117,0.008,3800.8,3800.7,18.0467459]
[1753839728659,0.008,3800.8,3800.7,17.5845459]
[1753839728947,0.008,3800.8,3800.7,17.5835459]
[1753839729651,0.008,3800.8,3800.7,20.21464017]
[1753839730065,0.008,3800.8,3800.7,13.2675]
[1753839730217,0.008,3800.8,3800.7,12.8053]
[1753839730421,0.008,3800.8,3800.7,15.89859427]
[1753839738642,0.008,3800.8,3800.7,8.1883]
[1753839738842,0.4689,3800.8,3800.7,11.4772]
[1753839739570,0.9234,3800.8,3800.7,11.4772]
[1753839739846,0.4689,3800.8,3800.7,11.4772]
[1753839740594,0.008,3800.8,3800.7,14.10829427]
[1753839740762,0.008,3800.8,3800.7,15.12049427]
[1753839741380,0.008,3800.8,3800.7,15.95169427]
[1753839741747,0.002,3801.2,3800.8,6.18102504]
[1753839741947,0.002,3801.2,3800.8,6.64322504]
[1753839742144,0.002,3801.2,3800.8,10.92322504]
[1753839742763,0.004,3801.6,3801.5,5.6094459]
[1753839742945,0.004,3801.6,3801.5,16.71618647]
[1753839743149,0.004,3801.6,3801.5,17.17838647]
[1753839743389,0.004,3801.6,3801.5,17.72838647]
[1753839744082,0.004,3801.6,3801.5,5.2424]
[1753839744289,0.004,3801.6,3801.5,8.4762]
[1753839744488,0.004,3801.6,3801.5,11.10674057]
[1753839744785,0.004,3801.6,3801.5,11.56894057]
[1753839745584,0.004,3801.6,3801.5,8.9374]
[1753839745886,0.004,3801.6,3801.5,11.56794057]
[1753839746605,0.004,3801.6,3801.5,8.9374]
[1753839746817,0.004,3801.6,3801.5,11.56794057]
[1753839747480,0.006,3801.6,3801.5,11.56794057]
[1753839747683,0.006,3801.6,3801.5,8.9374]
[1753839748590,0.006,3801.6,3801.5,4.4112]
[1753839748777,1.6833,3801.6,3801.5,4.4112]
[1753839748980,1.6833,3801.6,3801.5,8.4752]
[1753839749184,1.6833,3801.6,3801.5,0.1312]
[1753839749359,1.6833,3801.6,3801.5,4.1952]
[1753839750261,0.9214,3801.6,3801.5,4.1952]
[1753839750595,0.4669,3801.6,3801.5,4.1952]
[1753839750782,0.4669,3801.6,3801.5,4.2215054]
[1753839751090,1.7388,3801.6,3801.5,4.1952]
[1753839752370,1.7388,3801.6,3801.5,0.1312]
[1753839752555,0.7988,3801.5,3800.3,4.28]
[1753839752754,0.7988,3801.3,3800.4,4.09031301]
[1753839752953,0.8938,3801.2,3800.5,4.064]
[1753839753275,0.4409,3801.1,3800.5,4.064]
[1753839753801,0.8938,3801.1,3800.5,4.064]
[1753839753957,0.4529,3801.1,3800.5,4.064]
[1753839754153,0.4409,3801.0,3800.6,4.064]
[1753839754461,0.4409,3801.2,3800.7,0.4943]
[1753839754669,0.4409,3801.2,3800.8,4.064]
[1753839754874,0.4409,3801.2,3800.9,0.4943]
[1753839755074,0.7779,3801.5,3800.8,5.63099717]
[1753839755291,0.7779,3801.5,3800.9,4.064]
[1753839755292,1.2188,3801.5,3800.9,4.064]
[1753839755479,0.4409,3801.4,3800.9,4.064]
[1753839755680,0.8938,3801.4,3801.0,4.064]
[1753839755887,0.7681,3801.3,3801.0,4.064]
[1753839756284,0.7681,3801.3,3799.9,3.44304369]
[1753839756285,0.7681,3801.1,3799.9,0.8114]
[1753839756486,0.8938,3801.0,3800.1,4.064]
[1753839756690,0.8938,3800.9,3800.1,4.064]
[1753839756853,0.8938,3800.8,3800.2,4.28]
[1753839757058,0.4409,3800.7,3800.2,4.28]
[1753839757261,0.4409,3800.6,3800.2,4.7743]